[Event "Titled Tuesday Blitz February 22 Early 2022"]
[White "Pichot, Alan"]
[Black "Reprintsev, Alexander"]
[WhiteFideId "110973"]
[BlackFideId "14100541"]
[WhiteElo "2543"]
[BlackElo "2126"]
[Result "1/2-1/2"]
[Round "01"]
[TimeControl "180+1"]
[Date "2022.02.22"]
[WhiteClock "0:00:16"]
[BlackClock "0:00:04"]

1. e4 {[%clk 0:03:00]}  d5 {[%clk 0:02:56]} 2. exd5 {[%clk 0:02:59]}  Qxd5 {[%clk 0:02:56]} 3. Nc3 {[%clk 0:02:59]}  Qa5 {[%clk 0:02:57]} 4. d4 {[%clk 0:02:59]}  Nf6 {[%clk 0:02:57]} 5. Nf3 {[%clk 0:03:00]}  Nc6 {[%clk 0:02:57]} 6. Bd2 {[%clk 0:02:54]}  a6 {[%clk 0:02:56]} 7. Ne4 {[%clk 0:02:20]}  Qb6 {[%clk 0:02:46]} 8. Nxf6+ {[%clk 0:02:19]}  gxf6 {[%clk 0:02:45]} 9. Bc3 {[%clk 0:02:19]}  Bg4 {[%clk 0:02:42]} 10. h3 {[%clk 0:02:05]}  Bh5 {[%clk 0:02:39]} 11. g4 {[%clk 0:01:59]}  Bg6 {[%clk 0:02:39]} 12. Bd3 {[%clk 0:02:00]}  O-O-O {[%clk 0:02:38]} 13. Bxg6 {[%clk 0:01:44]}  hxg6 {[%clk 0:02:38]} 14. Qe2 {[%clk 0:01:45]}  Bh6 {[%clk 0:02:28]} 15. Kf1 {[%clk 0:01:42]}  Bf4 {[%clk 0:02:26]} 16. Kg2 {[%clk 0:01:41]}  e5 {[%clk 0:02:17]} 17. dxe5 {[%clk 0:01:34]}  fxe5 {[%clk 0:02:17]} 18. Rad1 {[%clk 0:01:34]}  Rde8 {[%clk 0:02:14]} 19. Qe4 {[%clk 0:01:17]}  Rhf8 {[%clk 0:02:06]} 20. g5 {[%clk 0:01:17]}  f5 {[%clk 0:01:51]} 21. gxf6 {[%clk 0:01:15]}  Rxf6 {[%clk 0:01:51]} 22. Rd3 {[%clk 0:01:11]}  Ref8 {[%clk 0:01:50]} 23. Rhd1 {[%clk 0:01:10]}  Kb8 {[%clk 0:01:50]} 24. a4 {[%clk 0:01:06]}  a5 {[%clk 0:01:50]} 25. Rd5 {[%clk 0:01:04]}  Be3 {[%clk 0:01:31]} 26. fxe3 {[%clk 0:00:57]}  Rxf3 {[%clk 0:01:30]} 27. Qxf3 {[%clk 0:00:58]}  Rxf3 {[%clk 0:01:30]} 28. Kxf3 {[%clk 0:00:59]}  Ne7 {[%clk 0:01:25]} 29. Rxa5 {[%clk 0:00:52]}  Qf6+ {[%clk 0:01:23]} 30. Ke2 {[%clk 0:00:52]}  Nc6 {[%clk 0:01:17]} 31. Rad5 {[%clk 0:00:50]}  Qf5 {[%clk 0:01:15]} 32. R1d2 {[%clk 0:00:46]}  Qxh3 {[%clk 0:01:14]} 33. Kd3 {[%clk 0:00:42]}  Qf1+ {[%clk 0:01:12]} 34. Re2 {[%clk 0:00:41]}  Qf7 {[%clk 0:01:07]} 35. e4 {[%clk 0:00:37]}  Qf3+ {[%clk 0:01:06]} 36. Kd2 {[%clk 0:00:37]}  Qf4+ {[%clk 0:01:05]} 37. Kd1 {[%clk 0:00:35]}  g5 {[%clk 0:01:04]} 38. Rd3 {[%clk 0:00:30]}  g4 {[%clk 0:01:04]} 39. Bd2 {[%clk 0:00:29]}  Qf1+ {[%clk 0:01:03]} 40. Be1 {[%clk 0:00:28]}  Qf7 {[%clk 0:01:02]} 41. b3 {[%clk 0:00:23]}  Nd4 {[%clk 0:01:01]} 42. Rf2 {[%clk 0:00:24]}  Qe7 {[%clk 0:00:57]} 43. Bc3 {[%clk 0:00:23]}  Nf3 {[%clk 0:00:55]} 44. Rdxf3 {[%clk 0:00:15]}  gxf3 {[%clk 0:00:55]} 45. Rxf3 {[%clk 0:00:16]}  Qh4 {[%clk 0:00:53]} 46. Re3 {[%clk 0:00:14]}  Qf4 {[%clk 0:00:51]} 47. Kd2 {[%clk 0:00:15]}  b6 {[%clk 0:00:51]} 48. Kd3 {[%clk 0:00:15]}  Kb7 {[%clk 0:00:51]} 49. Bd2 {[%clk 0:00:15]}  Qf1+ {[%clk 0:00:51]} 50. Kc3 {[%clk 0:00:15]}  Qa1+ {[%clk 0:00:51]} 51. Kd3 {[%clk 0:00:14]}  Qd4+ {[%clk 0:00:51]} 52. Ke2 {[%clk 0:00:14]}  Qd7 {[%clk 0:00:50]} 53. Bc3 {[%clk 0:00:14]}  Qg4+ {[%clk 0:00:49]} 54. Kd2 {[%clk 0:00:15]}  Qg2+ {[%clk 0:00:49]} 55. Re2 {[%clk 0:00:15]}  Qg5+ {[%clk 0:00:49]} 56. Kd3 {[%clk 0:00:16]}  Kc6 {[%clk 0:00:49]} 57. b4 {[%clk 0:00:14]}  Kb7 {[%clk 0:00:47]} 58. a5 {[%clk 0:00:14]}  b5 {[%clk 0:00:47]} 59. Re3 {[%clk 0:00:12]}  Qf6 {[%clk 0:00:46]} 60. Ke2 {[%clk 0:00:12]}  Qe6 {[%clk 0:00:46]} 61. Kd3 {[%clk 0:00:07]}  Qc4+ {[%clk 0:00:46]} 62. Kd2 {[%clk 0:00:07]}  Qe6 {[%clk 0:00:43]} 63. Kc1 {[%clk 0:00:08]}  Qh6 {[%clk 0:00:39]} 64. Bd2 {[%clk 0:00:08]}  Qc6 {[%clk 0:00:35]} 65. Kb2 {[%clk 0:00:08]}  Qc4 {[%clk 0:00:35]} 66. Bc3 {[%clk 0:00:08]}  Qe6 {[%clk 0:00:35]} 67. Rd3 {[%clk 0:00:08]}  c6 {[%clk 0:00:27]} 68. Rd8 {[%clk 0:00:06]}  Qe7 {[%clk 0:00:20]} 69. Rh8 {[%clk 0:00:05]}  c5 {[%clk 0:00:20]} 70. bxc5 {[%clk 0:00:05]}  Qxc5 {[%clk 0:00:20]} 71. Rh7+ {[%clk 0:00:05]}  Kc8 {[%clk 0:00:20]} 72. a6 {[%clk 0:00:02]}  b4 {[%clk 0:00:19]} 73. Be1 {[%clk 0:00:02]}  Qd4+ {[%clk 0:00:18]} 74. Kb3 {[%clk 0:00:02]}  Qxe4 {[%clk 0:00:18]} 75. a7 {[%clk 0:00:03]}  Qe3+ {[%clk 0:00:11]} 76. Kxb4 {[%clk 0:00:03]}  Qxe1+ {[%clk 0:00:11]} 77. c3 {[%clk 0:00:04]}  Qb1+ {[%clk 0:00:11]} 78. Kc5 {[%clk 0:00:04]}  Qg1+ {[%clk 0:00:07]} 79. Kb5 {[%clk 0:00:04]}  Qf1+ {[%clk 0:00:06]} 80. Kb6 {[%clk 0:00:04]}  Qf6+ {[%clk 0:00:06]} 81. Kc5 {[%clk 0:00:05]}  Qf2+ {[%clk 0:00:06]} 82. Kd5 {[%clk 0:00:05]}  Qd2+ {[%clk 0:00:04]} 83. Kc4 {[%clk 0:00:06]}  Qe2+ {[%clk 0:00:04]} 84. Kb3 {[%clk 0:00:06]}  Qd1+ {[%clk 0:00:05]} 85. Kb4 {[%clk 0:00:06]}  Qb1+ {[%clk 0:00:03]} 86. Kc5 {[%clk 0:00:07]}  Qg1+ {[%clk 0:00:01]} 87. Kb5 {[%clk 0:00:08]}  Qf1+ {[%clk 0:00:01]} 88. Kc6 {[%clk 0:00:08]}  Qf6+ {[%clk 0:00:01]} 89. Kd5 {[%clk 0:00:08]}  Qf3+ {[%clk 0:00:01]} 90. Kxe5 {[%clk 0:00:09]}  Qxc3+ {[%clk 0:00:01]} 91. Kd5 {[%clk 0:00:10]}  Qb3+ {[%clk 0:00:01]} 92. Ke4 {[%clk 0:00:11]}  Qb4+ {[%clk 0:00:01]} 93. Kd5 {[%clk 0:00:11]}  Qa5+ {[%clk 0:00:02]} 94. Kc6 {[%clk 0:00:12]}  Qa6+ {[%clk 0:00:02]} 95. Kc5 {[%clk 0:00:13]}  Qa5+ {[%clk 0:00:03]} 96. Kc4 {[%clk 0:00:13]}  Qa4+ {[%clk 0:00:04]} 97. Kd5 {[%clk 0:00:14]}  Qa5+ {[%clk 0:00:04]} 98. Kd4 {[%clk 0:00:15]}  Qa1+ {[%clk 0:00:03]} 99. Kc5 {[%clk 0:00:16]}  Qa5+ {[%clk 0:00:03]} 100. Kc4 {[%clk 0:00:16]}  Qa4+ {[%clk 0:00:03]} 101. Kc5 {[%clk 0:00:16]}  Qa5+ {[%clk 0:00:04]} 1/2-1/2


[Site "https://www.chess.com"]

[Event "Titled Tuesday Blitz February 22 Early 2022"]
[White "Ponkratov, Pavel"]
[Black "Suarez Uriel, Adrian"]
[WhiteFideId "4157800"]
[BlackFideId "22230874"]
[WhiteElo "2487"]
[BlackElo "2316"]
[Result "1-0"]
[Round "01"]
[TimeControl "180+1"]
[Date "2022.02.22"]
[WhiteClock "0:01:11"]
[BlackClock "0:01:07"]

1. d4 {[%clk 0:03:00]}  Nf6 {[%clk 0:02:55]} 2. c4 {[%clk 0:03:01]}  g6 {[%clk 0:02:55]} 3. Nc3 {[%clk 0:03:01]}  d5 {[%clk 0:02:55]} 4. cxd5 {[%clk 0:03:01]}  Nxd5 {[%clk 0:02:56]} 5. Na4 {[%clk 0:03:01]}  Nc6 {[%clk 0:02:50]} 6. e4 {[%clk 0:03:00]}  Nb6 {[%clk 0:02:51]} 7. d5 {[%clk 0:02:59]}  Ne5 {[%clk 0:02:44]} 8. f4 {[%clk 0:02:58]}  Ng4 {[%clk 0:02:42]} 9. Nxb6 {[%clk 0:02:52]}  axb6 {[%clk 0:02:40]} 10. Nf3 {[%clk 0:02:46]}  Bg7 {[%clk 0:02:39]} 11. e5 {[%clk 0:02:34]}  O-O {[%clk 0:02:34]} 12. h3 {[%clk 0:02:34]}  Nh6 {[%clk 0:02:33]} 13. Be3 {[%clk 0:02:32]}  c6 {[%clk 0:02:33]} 14. dxc6 {[%clk 0:02:24]}  bxc6 {[%clk 0:02:31]} 15. Qxd8 {[%clk 0:02:23]}  Rxd8 {[%clk 0:02:31]} 16. Bxb6 {[%clk 0:02:24]}  Rd5 {[%clk 0:02:32]} 17. Bf2 {[%clk 0:02:24]}  f6 {[%clk 0:02:28]} 18. Bc4 {[%clk 0:02:24]}  fxe5 {[%clk 0:02:28]} 19. Nxe5 {[%clk 0:02:24]}  Be6 {[%clk 0:02:26]} 20. Bxd5 {[%clk 0:02:22]}  Bxd5 {[%clk 0:02:27]} 21. O-O {[%clk 0:02:22]}  g5 {[%clk 0:02:25]} 22. Bd4 {[%clk 0:02:10]}  Nf5 {[%clk 0:02:24]} 23. Bc3 {[%clk 0:02:08]}  Ne3 {[%clk 0:02:23]} 24. Rfc1 {[%clk 0:01:54]}  gxf4 {[%clk 0:02:21]} 25. Nxc6 {[%clk 0:01:52]}  Bxc3 {[%clk 0:02:10]} 26. Rxc3 {[%clk 0:01:46]}  Kf7 {[%clk 0:02:07]} 27. Nb4 {[%clk 0:01:43]}  Bb7 {[%clk 0:01:54]} 28. Nd3 {[%clk 0:01:37]}  Rg8 {[%clk 0:01:54]} 29. Nxf4 {[%clk 0:01:37]}  Nxg2 {[%clk 0:01:54]} 30. Nxg2 {[%clk 0:01:27]}  Rxg2+ {[%clk 0:01:55]} 31. Kf1 {[%clk 0:01:28]}  Rxb2 {[%clk 0:01:55]} 32. Rb3 {[%clk 0:01:28]}  Ba6+ {[%clk 0:01:53]} 33. Kg1 {[%clk 0:01:28]}  Re2 {[%clk 0:01:49]} 34. a4 {[%clk 0:01:27]}  Bc4 {[%clk 0:01:49]} 35. Rf3+ {[%clk 0:01:26]}  Kg6 {[%clk 0:01:47]} 36. a5 {[%clk 0:01:26]}  Ba6 {[%clk 0:01:44]} 37. Rb3 {[%clk 0:01:25]}  Bc4 {[%clk 0:01:39]} 38. Rc3 {[%clk 0:01:22]}  Bd5 {[%clk 0:01:38]} 39. a6 {[%clk 0:01:22]}  Rg2+ {[%clk 0:01:37]} 40. Kf1 {[%clk 0:01:22]}  Rh2 {[%clk 0:01:38]} 41. Ra5 {[%clk 0:01:22]}  Rh1+ {[%clk 0:01:33]} 42. Kf2 {[%clk 0:01:22]}  Rh2+ {[%clk 0:01:33]} 43. Kg3 {[%clk 0:01:20]}  Rg2+ {[%clk 0:01:33]} 44. Kf4 {[%clk 0:01:20]}  Ba8 {[%clk 0:01:32]} 45. a7 {[%clk 0:01:19]}  Kf6 {[%clk 0:01:31]} 46. Ke3 {[%clk 0:01:15]}  Rg3+ {[%clk 0:01:24]} 47. Kd2 {[%clk 0:01:14]}  Rg2+ {[%clk 0:01:24]} 48. Kc1 {[%clk 0:01:15]}  Rg1+ {[%clk 0:01:23]} 49. Kb2 {[%clk 0:01:15]}  Rg2+ {[%clk 0:01:23]} 50. Ka3 {[%clk 0:01:14]}  Rg8 {[%clk 0:01:12]} 51. Rb3 {[%clk 0:01:13]}  e5 {[%clk 0:01:09]} 52. Rb8 {[%clk 0:01:13]}  Rg3+ {[%clk 0:01:10]} 53. Kb4 {[%clk 0:01:12]}  Bd5 {[%clk 0:01:07]} 54. Rxd5 {[%clk 0:01:11]} 1-0


[Site "https://www.chess.com"]

[Event "Titled Tuesday Blitz February 22 Early 2022"]
[White "Poormosavi, Seyed Kian"]
[Black "Ferguson, Randal"]
[WhiteFideId "12585807"]
[BlackFideId "30903106"]
[WhiteElo "2116"]
[BlackElo "2079"]
[Result "1-0"]
[Round "01"]
[TimeControl "180+1"]
[Date "2022.02.22"]
[WhiteClock "0:00:22"]
[BlackClock "0:00:01"]

1. e4 {[%clk 0:02:59]}  c5 {[%clk 0:02:59]} 2. Nf3 {[%clk 0:02:58]}  d6 {[%clk 0:02:59]} 3. c3 {[%clk 0:02:57]}  Nf6 {[%clk 0:02:58]} 4. Be2 {[%clk 0:02:54]}  Nbd7 {[%clk 0:02:57]} 5. d3 {[%clk 0:02:50]}  g6 {[%clk 0:02:52]} 6. O-O {[%clk 0:02:47]}  Bg7 {[%clk 0:02:52]} 7. Re1 {[%clk 0:02:46]}  O-O {[%clk 0:02:51]} 8. Bf1 {[%clk 0:02:43]}  b6 {[%clk 0:02:46]} 9. d4 {[%clk 0:02:42]}  Bb7 {[%clk 0:02:39]} 10. d5 {[%clk 0:02:28]}  a6 {[%clk 0:02:29]} 11. a4 {[%clk 0:02:24]}  Re8 {[%clk 0:02:18]} 12. Na3 {[%clk 0:01:58]}  h6 {[%clk 0:02:16]} 13. Nd2 {[%clk 0:01:47]}  e6 {[%clk 0:02:09]} 14. dxe6 {[%clk 0:01:45]}  Rxe6 {[%clk 0:02:09]} 15. f3 {[%clk 0:01:32]}  d5 {[%clk 0:01:45]} 16. exd5 {[%clk 0:01:32]}  Rxe1 {[%clk 0:01:41]} 17. Qxe1 {[%clk 0:01:33]}  Nxd5 {[%clk 0:01:39]} 18. Ne4 {[%clk 0:01:32]}  N7f6 {[%clk 0:01:37]} 19. Nxf6+ {[%clk 0:01:29]}  Qxf6 {[%clk 0:01:30]} 20. Bd2 {[%clk 0:01:30]}  Nf4 {[%clk 0:01:24]} 21. Qf2 {[%clk 0:01:24]}  Rd8 {[%clk 0:01:19]} 22. Bxf4 {[%clk 0:01:16]}  Qxf4 {[%clk 0:01:19]} 23. Nc4 {[%clk 0:01:16]}  b5 {[%clk 0:01:12]} 24. Na5 {[%clk 0:01:13]}  Rd2 {[%clk 0:00:45]} 25. Qg3 {[%clk 0:00:58]}  Qxg3 {[%clk 0:00:37]} 26. hxg3 {[%clk 0:00:59]}  Bd5 {[%clk 0:00:29]} 27. axb5 {[%clk 0:00:59]}  axb5 {[%clk 0:00:29]} 28. Bxb5 {[%clk 0:00:56]}  Rxb2 {[%clk 0:00:29]} 29. Bc4 {[%clk 0:00:54]}  Bxc4 {[%clk 0:00:18]} 30. Nxc4 {[%clk 0:00:54]}  Rc2 {[%clk 0:00:18]} 31. Ra8+ {[%clk 0:00:53]}  Kh7 {[%clk 0:00:18]} 32. Ra7 {[%clk 0:00:54]}  Rxc3 {[%clk 0:00:17]} 33. Nd6 {[%clk 0:00:55]}  Bd4+ {[%clk 0:00:15]} 34. Kh2 {[%clk 0:00:55]}  Kg7 {[%clk 0:00:14]} 35. Rxf7+ {[%clk 0:00:55]}  Kg8 {[%clk 0:00:14]} 36. Rd7 {[%clk 0:00:50]}  Rc1 {[%clk 0:00:12]} 37. Ne4 {[%clk 0:00:45]}  h5 {[%clk 0:00:10]} 38. Ng5 {[%clk 0:00:36]}  Bg1+ {[%clk 0:00:08]} 39. Kh3 {[%clk 0:00:36]}  Be3 {[%clk 0:00:08]} 40. Rd8+ {[%clk 0:00:36]}  Kg7 {[%clk 0:00:08]} 41. Rd7+ {[%clk 0:00:36]}  Kh6 {[%clk 0:00:06]} 42. Nf7+ {[%clk 0:00:35]}  Kg7 {[%clk 0:00:05]} 43. Nd8+ {[%clk 0:00:22]}  Kf6 {[%clk 0:00:04]} 44. Rf7+ {[%clk 0:00:20]}  Kg5 {[%clk 0:00:01]} 45. f4+ {[%clk 0:00:21]}  Kh6 {[%clk 0:00:01]} 46. g4 {[%clk 0:00:22]} 1-0


[Site "https://www.chess.com"]

[Event "Titled Tuesday Blitz February 22 Early 2022"]
[White "Popadic, Dragan"]
[Black "Narayanan, Srinath"]
[WhiteFideId "913650"]
[BlackFideId "5018420"]
[WhiteElo "2199"]
[BlackElo "2472"]
[Result "0-1"]
[Round "01"]
[TimeControl "180+1"]
[Date "2022.02.22"]
[WhiteClock "0:01:10"]
[BlackClock "0:00:12"]

1. e4 {[%clk 0:03:00]}  c6 {[%clk 0:02:56]} 2. d4 {[%clk 0:03:00]}  d5 {[%clk 0:02:57]} 3. Nd2 {[%clk 0:03:00]}  dxe4 {[%clk 0:02:56]} 4. Nxe4 {[%clk 0:03:01]}  Nf6 {[%clk 0:02:57]} 5. Ng3 {[%clk 0:03:01]}  e5 {[%clk 0:02:51]} 6. Qe2 {[%clk 0:02:51]}  Qxd4 {[%clk 0:02:46]} 7. Nf3 {[%clk 0:02:48]}  Bb4+ {[%clk 0:02:43]} 8. c3 {[%clk 0:02:48]}  Bxc3+ {[%clk 0:02:44]} 9. bxc3 {[%clk 0:02:48]}  Qxc3+ {[%clk 0:02:44]} 10. Nd2 {[%clk 0:02:47]}  Qxa1 {[%clk 0:02:44]} 11. Qd1 {[%clk 0:02:36]}  O-O {[%clk 0:02:33]} 12. Bc4 {[%clk 0:02:36]}  Qd4 {[%clk 0:02:13]} 13. O-O {[%clk 0:02:33]}  Re8 {[%clk 0:02:11]} 14. Bb3 {[%clk 0:02:32]}  Bg4 {[%clk 0:02:10]} 15. Qc2 {[%clk 0:02:31]}  Nbd7 {[%clk 0:02:10]} 16. Bb2 {[%clk 0:02:30]}  Qc5 {[%clk 0:02:10]} 17. Qb1 {[%clk 0:02:25]}  Rad8 {[%clk 0:02:08]} 18. h3 {[%clk 0:02:22]}  Be6 {[%clk 0:02:08]} 19. Nf3 {[%clk 0:02:14]}  e4 {[%clk 0:01:49]} 20. Nd4 {[%clk 0:02:08]}  Bxb3 {[%clk 0:01:50]} 21. axb3 {[%clk 0:02:05]}  Ne5 {[%clk 0:01:39]} 22. Ndf5 {[%clk 0:02:02]}  Rd2 {[%clk 0:01:22]} 23. Qa1 {[%clk 0:01:59]}  Nfd7 {[%clk 0:00:57]} 24. Nxe4 {[%clk 0:01:49]}  Qc2 {[%clk 0:00:44]} 25. Nxd2 {[%clk 0:01:41]}  Qxf5 {[%clk 0:00:43]} 26. Re1 {[%clk 0:01:34]}  f6 {[%clk 0:00:38]} 27. f4 {[%clk 0:01:31]}  Qxf4 {[%clk 0:00:37]} 28. Nc4 {[%clk 0:01:27]}  a6 {[%clk 0:00:29]} 29. Nd6 {[%clk 0:01:23]}  Nf3+ {[%clk 0:00:25]} 30. gxf3 {[%clk 0:01:21]}  Qg3+ {[%clk 0:00:25]} 31. Kf1 {[%clk 0:01:18]}  Qxf3+ {[%clk 0:00:20]} 32. Kg1 {[%clk 0:01:18]}  Qg3+ {[%clk 0:00:20]} 33. Kf1 {[%clk 0:01:18]}  Qxh3+ {[%clk 0:00:18]} 34. Kf2 {[%clk 0:01:18]}  Qh2+ {[%clk 0:00:18]} 35. Kf1 {[%clk 0:01:19]}  Rxe1+ {[%clk 0:00:16]} 36. Qxe1 {[%clk 0:01:17]}  Qxd6 {[%clk 0:00:16]} 37. Qe8+ {[%clk 0:01:16]}  Nf8 {[%clk 0:00:16]} 38. Qe2 {[%clk 0:01:13]}  Ne6 {[%clk 0:00:14]} 39. Bc3 {[%clk 0:01:12]}  Qd5 {[%clk 0:00:12]} 40. b4 {[%clk 0:01:10]}  Qb5 {[%clk 0:00:12]} 0-1


[Site "https://www.chess.com"]

[Event "Titled Tuesday Blitz February 22 Early 2022"]
[White "Przybylski, Wojciech"]
[Black "Vokhidov, Shamsiddin"]
[WhiteFideId "1117599"]
[BlackFideId "14204223"]
[WhiteElo "2133"]
[BlackElo "2611"]
[Result "0-1"]
[Round "01"]
[TimeControl "180+1"]
[Date "2022.02.22"]
[WhiteClock "0:00:02"]
[BlackClock "0:02:17"]

1. e4 {[%clk 0:02:59]}  c5 {[%clk 0:02:59]} 2. Nf3 {[%clk 0:02:56]}  Nc6 {[%clk 0:02:59]} 3. d4 {[%clk 0:02:53]}  cxd4 {[%clk 0:03:00]} 4. Nxd4 {[%clk 0:02:53]}  Nf6 {[%clk 0:03:01]} 5. Nc3 {[%clk 0:02:53]}  d6 {[%clk 0:03:01]} 6. Be2 {[%clk 0:02:51]}  e5 {[%clk 0:03:01]} 7. Nf3 {[%clk 0:02:50]}  Be7 {[%clk 0:03:01]} 8. O-O {[%clk 0:02:48]}  O-O {[%clk 0:03:01]} 9. h3 {[%clk 0:02:48]}  Be6 {[%clk 0:03:01]} 10. Be3 {[%clk 0:02:46]}  d5 {[%clk 0:03:00]} 11. exd5 {[%clk 0:02:44]}  Nxd5 {[%clk 0:03:01]} 12. Nxd5 {[%clk 0:02:44]}  Bxd5 {[%clk 0:03:02]} 13. Nd2 {[%clk 0:02:34]}  f5 {[%clk 0:03:01]} 14. f4 {[%clk 0:02:15]}  exf4 {[%clk 0:02:58]} 15. Bxf4 {[%clk 0:02:10]}  Qb6+ {[%clk 0:02:50]} 16. Kh2 {[%clk 0:02:07]}  Rad8 {[%clk 0:02:50]} 17. c4 {[%clk 0:01:46]}  Be6 {[%clk 0:02:46]} 18. Qb3 {[%clk 0:01:43]}  g5 {[%clk 0:02:24]} 19. Be3 {[%clk 0:01:05]}  Qc7+ {[%clk 0:02:19]} 20. g3 {[%clk 0:00:39]}  f4 {[%clk 0:02:17]} 21. gxf4 {[%clk 0:00:38]}  gxf4 {[%clk 0:02:18]} 22. Rg1+ {[%clk 0:00:37]}  Kh8 {[%clk 0:02:18]} 23. Rad1 {[%clk 0:00:02]}  fxe3+ {[%clk 0:02:17]} 0-1


[Site "https://www.chess.com"]

[Event "Titled Tuesday Blitz February 22 Early 2022"]
[White "Purtseladze, Maka"]
[Black "Kamsky, Gata"]
[WhiteFideId "13602659"]
[BlackFideId "2000024"]
[WhiteElo "2192"]
[BlackElo "2645"]
[Result "1-0"]
[Round "01"]
[TimeControl "180+1"]
[Date "2022.02.22"]
[WhiteClock "0:00:45"]
[BlackClock "0:00:02"]

1. d4 {[%clk 0:03:00]}  d5 {[%clk 0:02:56]} 2. Nc3 {[%clk 0:03:00]}  Bf5 {[%clk 0:02:54]} 3. Bf4 {[%clk 0:02:59]}  e6 {[%clk 0:02:54]} 4. e3 {[%clk 0:03:00]}  Bd6 {[%clk 0:02:52]} 5. Bd3 {[%clk 0:03:00]}  Bxf4 {[%clk 0:02:49]} 6. exf4 {[%clk 0:02:58]}  Ne7 {[%clk 0:02:48]} 7. Nge2 {[%clk 0:02:56]}  O-O {[%clk 0:02:39]} 8. Ng3 {[%clk 0:02:56]}  Bxd3 {[%clk 0:02:38]} 9. Qxd3 {[%clk 0:02:56]}  g6 {[%clk 0:02:34]} 10. h4 {[%clk 0:02:43]}  h5 {[%clk 0:02:31]} 11. O-O-O {[%clk 0:02:43]}  c5 {[%clk 0:02:30]} 12. dxc5 {[%clk 0:02:43]}  Qc7 {[%clk 0:02:24]} 13. Qd4 {[%clk 0:02:36]}  Nd7 {[%clk 0:02:20]} 14. f5 {[%clk 0:02:26]}  Qxc5 {[%clk 0:01:44]} 15. fxe6 {[%clk 0:02:16]}  fxe6 {[%clk 0:01:43]} 16. f3 {[%clk 0:02:10]}  Qxd4 {[%clk 0:01:42]} 17. Rxd4 {[%clk 0:02:11]}  Nc6 {[%clk 0:01:40]} 18. Rd2 {[%clk 0:02:10]}  Rac8 {[%clk 0:01:28]} 19. Re1 {[%clk 0:02:03]}  Rfe8 {[%clk 0:01:23]} 20. Nge2 {[%clk 0:02:00]}  Kf7 {[%clk 0:01:12]} 21. Nb5 {[%clk 0:01:53]}  Ke7 {[%clk 0:00:40]} 22. Nf4 {[%clk 0:01:40]}  Nce5 {[%clk 0:00:32]} 23. Rde2 {[%clk 0:01:31]}  Rf8 {[%clk 0:00:28]} 24. Nxg6+ {[%clk 0:01:10]}  Nxg6 {[%clk 0:00:26]} 25. Rxe6+ {[%clk 0:01:11]}  Kf7 {[%clk 0:00:09]} 26. Nd6+ {[%clk 0:01:11]}  Kg7 {[%clk 0:00:07]} 27. Nxc8 {[%clk 0:01:11]}  Nc5 {[%clk 0:00:07]} 28. Rxg6+ {[%clk 0:01:07]}  Kxg6 {[%clk 0:00:07]} 29. Ne7+ {[%clk 0:01:07]}  Kf7 {[%clk 0:00:04]} 30. Nxd5 {[%clk 0:01:08]}  Ne6 {[%clk 0:00:03]} 31. c3 {[%clk 0:01:03]}  Rg8 {[%clk 0:00:03]} 32. Re2 {[%clk 0:01:03]}  b6 {[%clk 0:00:04]} 33. Rd2 {[%clk 0:00:50]}  Rc8 {[%clk 0:00:03]} 34. Ne3 {[%clk 0:00:46]}  Kf6 {[%clk 0:00:02]} 35. g4 {[%clk 0:00:45]} 1-0


[Site "https://www.chess.com"]

[Event "Titled Tuesday Blitz February 22 Early 2022"]
[White "Putri, Regita Desyari"]
[Black "Nazari, Arad"]
[WhiteFideId "7109083"]
[BlackFideId "12577324"]
[WhiteElo "1930"]
[BlackElo "2120"]
[Result "0-1"]
[Round "01"]
[TimeControl "180+1"]
[Date "2022.02.22"]
[WhiteClock "0:00:41"]
[BlackClock "0:00:12"]

1. d4 {[%clk 0:02:59]}  Nf6 {[%clk 0:02:58]} 2. c4 {[%clk 0:02:59]}  e6 {[%clk 0:02:53]} 3. Nf3 {[%clk 0:02:59]}  b6 {[%clk 0:02:54]} 4. g3 {[%clk 0:02:59]}  Bb7 {[%clk 0:02:55]} 5. Bg2 {[%clk 0:02:59]}  g6 {[%clk 0:02:54]} 6. O-O {[%clk 0:02:59]}  Bg7 {[%clk 0:02:54]} 7. Nc3 {[%clk 0:02:59]}  O-O {[%clk 0:02:55]} 8. Qc2 {[%clk 0:02:59]}  d6 {[%clk 0:02:47]} 9. e4 {[%clk 0:02:57]}  Nbd7 {[%clk 0:02:47]} 10. Bg5 {[%clk 0:02:56]}  h6 {[%clk 0:02:47]} 11. Bxf6 {[%clk 0:02:52]}  Bxf6 {[%clk 0:02:45]} 12. Rfe1 {[%clk 0:02:50]}  Bg7 {[%clk 0:02:38]} 13. Rad1 {[%clk 0:02:49]}  Qe7 {[%clk 0:02:38]} 14. e5 {[%clk 0:02:37]}  Rac8 {[%clk 0:02:00]} 15. exd6 {[%clk 0:02:13]}  cxd6 {[%clk 0:02:01]} 16. Qd3 {[%clk 0:02:13]}  Rfd8 {[%clk 0:01:52]} 17. b3 {[%clk 0:02:09]}  a6 {[%clk 0:01:38]} 18. a4 {[%clk 0:02:05]}  Nf6 {[%clk 0:01:28]} 19. h3 {[%clk 0:01:54]}  Qc7 {[%clk 0:01:28]} 20. Nd2 {[%clk 0:01:41]}  d5 {[%clk 0:01:14]} 21. Ne2 {[%clk 0:01:25]}  Qb8 {[%clk 0:00:54]} 22. Rc1 {[%clk 0:01:22]}  dxc4 {[%clk 0:00:39]} 23. Nxc4 {[%clk 0:01:20]}  Bxg2 {[%clk 0:00:37]} 24. Kxg2 {[%clk 0:01:20]}  Nd5 {[%clk 0:00:36]} 25. Qe4 {[%clk 0:01:14]}  b5 {[%clk 0:00:26]} 26. axb5 {[%clk 0:01:14]}  axb5 {[%clk 0:00:27]} 27. Ne5 {[%clk 0:01:14]}  f5 {[%clk 0:00:18]} 28. Qf3 {[%clk 0:01:03]}  Bxe5 {[%clk 0:00:17]} 29. dxe5 {[%clk 0:01:03]}  Rxc1 {[%clk 0:00:12]} 30. Nxc1 {[%clk 0:01:03]}  Rc8 {[%clk 0:00:12]} 31. Nd3 {[%clk 0:01:02]}  Rc3 {[%clk 0:00:12]} 32. Qd1 {[%clk 0:01:01]}  Qb6 {[%clk 0:00:11]} 33. Re2 {[%clk 0:00:52]}  Qc6 {[%clk 0:00:12]} 34. Kh2 {[%clk 0:00:51]}  Qb6 {[%clk 0:00:10]} 35. b4 {[%clk 0:00:49]}  Qd4 {[%clk 0:00:10]} 36. Nb2 {[%clk 0:00:48]}  Qxb4 {[%clk 0:00:10]} 37. Nd3 {[%clk 0:00:45]}  Qd4 {[%clk 0:00:09]} 38. Nb2 {[%clk 0:00:45]}  Qxd1 {[%clk 0:00:10]} 39. Nxd1 {[%clk 0:00:45]}  b4 {[%clk 0:00:10]} 40. Rb2 {[%clk 0:00:45]}  Rd3 {[%clk 0:00:10]} 41. Rb1 {[%clk 0:00:44]}  Rd2 {[%clk 0:00:10]} 42. Kg1 {[%clk 0:00:43]}  Kf7 {[%clk 0:00:10]} 43. Nb2 {[%clk 0:00:43]}  Nc3 {[%clk 0:00:09]} 44. Ra1 {[%clk 0:00:39]}  Rxb2 {[%clk 0:00:09]} 45. Ra7+ {[%clk 0:00:40]}  Ke8 {[%clk 0:00:10]} 46. Ra8+ {[%clk 0:00:40]}  Kd7 {[%clk 0:00:10]} 47. Ra7+ {[%clk 0:00:41]}  Kc6 {[%clk 0:00:11]} 48. Kg2 {[%clk 0:00:41]}  Rb1 {[%clk 0:00:11]} 49. Ra8 {[%clk 0:00:41]}  b3 {[%clk 0:00:11]} 50. Rc8+ {[%clk 0:00:41]}  Kd5 {[%clk 0:00:12]} 51. Rd8+ {[%clk 0:00:41]}  Kxe5 {[%clk 0:00:12]} 52. Re8 {[%clk 0:00:41]}  b2 {[%clk 0:00:12]} 0-1


[Site "https://www.chess.com"]